Cogmind - Beta 15 @@@ ROGUE MODE // 2025.08.08 @ 18:00:28 Player: aloola Result: Destroyed by G-73 Enforcer with Phase Gun Performance ------------- Evolutions (8) 4000 Regions Visited (22) 4400 Robots Destroyed (216) 1080 Value Destroyed (11928) 11928 Prototype IDs (52) 1040 Alien Tech Used (11) 2200 Bonus (7104) 7104 TOTAL SCORE: 31752 Bonus ------- High Alert Combat Kills 1059 Follower Combat Kills 3340 Registered with UFD 300 Met Optimus in HQ 500 Met Data Miner 300 Met Zhirov 300 Met Sigix 2000 Friendly Fire -695 Cogmind --------- Core Integrity 0/1450 Matter 290/300 Energy 100/100 System Corruption 59% Temperature Cool (9) +ITN Movement Core (50) Location -2/Section 7 Parts ------- > --- POWER (1) -------- (None) > --- PROPULSION (4) --- (None) > --- UTILITY (13) ----- Advanced Sensor Array Advanced Signal Interpreter Experimental Targeting Computer Improved Hacking Suite Advanced Hacking Suite Improved System Shield Spacefold Activator > --- WEAPON (5) ------- (None) > --- INVENTORY (5) ---- Transdimensional Reconstructor Sigix Containment Pod Sigix Containment Pod Peak State ------------ > --- POWER ------------ Light Antimatter Reactor > --- PROPULSION ------- Heavy Siege Treads Advanced Heavy Siege Treads > --- UTILITY ---------- Experimental Power Amplifier Advanced Coolant Injector Huge Storage Unit Structural Scanner Advanced Signal Interpreter Experimental Targeting Computer Core Analyzer Core Analyzer Experimental Phase Shifter Advanced Hacking Suite Advanced Hacking Suite Improved System Shield Improved System Shield > --- WEAPON ----------- Enhanced Quantum Rifle Enhanced Nova Cannon Core Cannon Improved Plasma Cutter > --- INVENTORY -------- Improved Heavy Treads Heavy Siege Treads Large Storage Unit Advanced Sensor Array Seismic Detector Thermal Barrier Amulet of Y3-NDR Transdimensional Reconstructor Gamma Rifle Enhanced Quantum Rifle Enhanced Quantum Rifle Railgun Helical Railgun Compact Mass Driver Compact Mass Driver Compact Mass Driver Compact Mass Driver Fusion Bomb Launcher Phasing Sabre Sigix Containment Pod Sigix Containment Pod [Rating: 180] Favorites ----------- Power Nuclear Core Engine Ion Engine Power Core Nuclear Core Reactor Reinforced Antimatter Reactor Propulsion Medium Treads Treads Medium Treads Utility Advanced Hacking Suite Device Improved Sensor Array Storage Large Storage Unit Processor Core Analyzer Hackware Advanced Hacking Suite Protection Heavy Armor Plating Artifact Spacefold Activator Weapon KE Penetrator Energy Gun Improved Heavy Laser Energy Cannon Enhanced Nova Cannon Ballistic Gun KE Penetrator Ballistic Cannon Magnetic Acceleration Cannon Launcher Thermoblaster Special Weapon Improved Plasma Cutter Impact Weapon Thunder Hammer Slashing Weapon Phasing Sabre Build | -11 -10 -10 -9 -6 -6 -6 -6 -5 -5 -5 -5 -5 -4 -4 -4 -4 -4 -3 -3 -2 -2 -2 ------- Run | Yrd Mat Sub Scr Fac Low Low Dat Pro Fac Upp Upp War Pro Fac Upp Upp Zhi Pro Res Res Qua Sec Slots Evolved 16 | . . . . 8 . . . . 2 . . . . 2 . . . . 2 2 . . Power . | . . . . . . . . . . . . . . . . . . . . . . . Propulsion 2 | . . . . 2 . . . . . . . . . . . . . . . . . . Utility 11 | . . . . 4 . . . . 2 . . . . 2 . . . . 1 2 . . Weapon 3 | . . . . 2 . . . . . . . . . . . . . . 1 . . . Parts Attached 175 | 7 6 3 6 16 . 5 . 2 3 2 1 . 5 7 5 2 2 7 24 21 36 15 Power 17 | 1 . . 1 . . . . . . . . . . 2 1 . 1 . 1 . 5 5 Engine 1 | 1 . . . . . . . . . . . . . . . . . . . . . . Core 2 | . . . 1 . . . . . . . . . . 1 . . . . . . . . Reactor 14 | . . . . . . . . . . . . . . 1 1 . 1 . 1 . 5 5 Propulsion 31 | 2 . . 2 1 . 1 . . 1 . 1 . 2 1 2 . . 3 5 4 4 2 Treads 31 | 2 . . 2 1 . 1 . . 1 . 1 . 2 1 2 . . 3 5 4 4 2 Leg . | . . . . . . . . . . . . . . . . . . . . . . . Wheel . | . . . . . . . . . . . . . . . . . . . . . . . Hover . | . . . . . . . . . . . . . . . . . . . . . . . Flight . | . . . . . . . . . . . . . . . . . . . . . . . Utility 64 | 2 3 1 2 9 . 2 . 1 2 . . . 1 3 . 1 1 2 10 6 13 5 Device 22 | 1 . 1 2 2 . 1 . . 1 . . . . . . . . 1 4 2 5 2 Storage 5 | 1 1 . . . . . . . . . . . . . . . . . . 3 . . Processor 11 | . 1 . . 3 . 1 . 1 . . . . 1 . . . . . . . 4 . Hackware 12 | . . . . 2 . . . . . . . . . 2 . . . . 6 . 1 1 Protection 12 | . 1 . . 2 . . . . 1 . . . . 1 . 1 1 1 . 1 2 1 Artifact 2 | . . . . . . . . . . . . . . . . . . . . . 1 1 Weapon 63 | 2 3 2 1 6 . 2 . 1 . 2 . . 2 1 2 1 . 2 8 11 14 3 Energy Gun 20 | 1 1 1 1 2 . . . . . . . . . . 1 . . . 4 6 3 . Energy Cannon 7 | . . . . . . . . . . . . . . 1 . 1 . 1 . 1 3 . Ballistic Gun 13 | 1 . . . . . 1 . . . . . . 1 . 1 . . 1 3 3 2 . Ballistic Cannon 9 | . . . . 2 . . . 1 . . . . . . . . . . . 1 4 1 Launcher 6 | . 1 1 . . . 1 . . . 1 . . 1 . . . . . . . . 1 Special Weapon 4 | . 1 . . 1 . . . . . . . . . . . . . . . . 2 . Impact Weapon 1 | . . . . . . . . . . . . . . . . . . . 1 . . . Slashing Weapon 3 | . . . . 1 . . . . . 1 . . . . . . . . . . . 1 Piercing Weapon . | . . . . . . . . . . . . . . . . . . . . . . . Special Melee Weapon . | . . . . . . . . . . . . . . . . . . . . . . . Unidentified Prototypes 29 | . . . 1 2 . 1 . . . . . . . . . . 3 . 1 3 11 7 Corrupted Parts 10 | . . . . . . 1 . . . . 1 . 2 . . . . 4 1 1 . . System Corruption 53 | . . . . . . 6 . . . . 13 . 5 . . . . 27 1 1 . . Parts Lost 73 | . . 4 . . . . . . . . . . 2 2 4 1 . 1 17 11 10 21 Power 6 | . . . . . . . . . . . . . . 1 1 . . . . . 3 1 Propulsion 15 | . . 1 . . . . . . . . . . . . 2 . . . 6 1 1 4 Utility 25 | . . 1 . . . . . . . . . . 1 . . 1 . 1 3 3 5 10 Weapon 27 | . . 2 . . . . . . . . . . 1 1 1 . . . 8 7 1 6 Highest Loss Streak 6 | . . 3 . . . . . . . . . . 1 2 4 1 . 1 6 6 2 4 To Critical Strikes 1 | . . . . . . . . . . . . . . . . . . . 1 . . . Average Backups 14 | 2 12 14 13 13 14 14 14 14 13 12 13 13 13 14 13 14 14 14 12 14 20 14 Power . | . 1 1 1 1 1 1 1 1 1 1 1 1 1 . . 1 1 1 1 1 . . Propulsion 1 | . . . . . . . . . 1 2 2 2 2 2 1 3 3 3 2 4 3 1 Utility 5 | . 3 5 5 8 9 8 8 8 6 5 6 6 6 5 5 5 5 5 4 3 6 2 Weapon 4 | . 8 7 6 3 3 2 3 3 3 3 3 3 2 4 4 4 4 2 2 3 7 6 Tool/Special . | . . . . . . . . . . . . . . . . . . . . . . . Unused Backups 46 | . 4 2 15 7 . 4 . . 2 . . . 1 . . 2 . . . 1 2 6 Power 3 | . . . 1 . . . . . . . . . . . . 1 . . . . . 1 Propulsion 4 | . 1 . . . . . . . . . . . . . . . . . . 1 1 1 Utility 19 | . 1 . 5 6 . 3 . . 2 . . . 1 . . 1 . . . . . . Weapon 17 | . 2 2 8 1 . 1 . . . . . . . . . . . . . . 1 2 Tool/Special 3 | . . . 1 . . . . . . . . . . . . . . . . . . 2 Average Slot Usage (%) 90 | . 100 86 89 98 100 100 77 100 98 100 100 100 99 96 86 96 84 94 84 86 86 73 Engine 2 | . 14 14 7 . . . . . . . . . . . . . . . . . . . Core 2 | . . . 5 6 6 6 6 6 5 5 5 5 5 2 . . . . . . . . Reactor 1 | . . . . . . . . . . . . . . 2 4 5 5 5 4 4 3 3 Treads 19 | . 28 20 25 25 26 26 26 26 23 23 23 23 23 21 20 21 21 21 14 8 8 6 Device 11 | . 10 2 7 12 6 10 13 13 21 23 23 23 17 10 9 14 15 15 11 13 12 5 Storage 6 | . 14 14 13 6 6 6 6 6 5 5 5 5 5 5 5 5 5 5 4 4 4 3 Processor 10 | . . 3 . 12 13 17 20 20 17 17 17 17 21 19 15 15 15 15 12 8 10 13 Hackware 8 | . . . . 4 6 . . . . . . . . 9 10 10 10 6 15 26 22 21 Protection 1 | . 3 7 . 1 6 3 . . . . . . . 3 5 2 5 4 . . 2 . Energy Gun 10 | . 14 11 27 11 13 11 1 6 5 5 5 5 5 5 2 5 . 5 7 9 8 2 Ballistic Gun 3 | . 12 . . . . 1 1 6 5 5 5 5 5 9 6 10 . 9 5 5 1 2 Ballistic Cannon 3 | . . . . 9 13 12 1 13 6 5 5 5 5 1 . . . . . 1 4 6 Slashing Weapon 1 | . . . . 3 . . . . 3 2 5 5 4 . . . 5 . . 2 . . Peak Build Rating 180 | 7 9 10 18 56 56 67 67 70 83 84 84 84 85 102 107 107 102 105 135 149 180 173 Average Rating 80 | 5 8 8 13 50 56 60 47 68 80 83 84 84 83 97 97 100 86 103 104 132 155 135 On Entrance 74 | . 7 9 9 18 56 56 67 67 70 83 84 84 84 82 102 107 102 92 104 119 149 154 Naked Turns . | . . . . . . . . . . . . . . . . . . . . . . . Heaviest Build 154 | 14 34 34 33 61 61 63 55 56 64 58 54 54 58 85 86 69 64 80 80 151 152 154 Greatest Support 160 | 40 40 40 43 91 91 101 101 101 109 109 109 109 109 106 108 108 108 108 150 155 160 155 Greatest Overweight (x) 35 | 4 . 1 1 . . . . . . . . . . . 1 . . . 1 1 . 35 Average Overweight (x) . | . . . . . . . . . . . . . . . . . . . . . . . Largest Inventory Capacity 25 | 8 15 15 15 15 15 15 15 15 15 15 15 15 15 15 15 15 15 15 15 25 25 25 Average Capacity 16 | 7 13 15 14 15 15 15 15 15 15 15 15 15 15 15 15 15 15 15 15 19 25 22 Most Carried 25 | 5 15 15 15 15 15 15 15 15 15 15 15 15 15 15 15 15 15 15 15 25 25 25 Average Carried 15 | 2 13 14 14 14 15 14 15 14 14 14 15 15 14 14 13 14 14 14 13 16 24 20 Final Capacity 25 | 8 15 15 15 15 15 15 15 15 15 15 15 15 15 15 15 15 15 15 15 25 25 5 Final Carried 25 | 5 15 13 15 15 15 15 15 15 15 15 15 15 15 14 15 14 15 15 15 25 23 5 Class Distribution -------------------- 26% | Mutant 11% | Wizard-Tank 8% | Scavenger-Gunner 8% | Skirmisher 8% | Wizard-Gunner 5% | Scavenger-Skirmisher 4% | Derelict-Assassin 3% | Commander-Assassin 3% | Gunner 3% | Hacker-Gunner 3% | Scavenger-Mutant Dominant Class ---------------- Mutant | -10/Materials Mutant | -10/Subcaves Mutant | -9/Scraptown Skirmisher | -6/Factory Skirmisher | -6/Lower Caves Gunner | -6/Lower Caves Mutant | -6/Data Miner Gunner | -5/Proximity Caves Assassin | -5/Factory Derelict-Assassin | -5/Upper Caves Derelict-Assassin | -5/Upper Caves Derelict-Assassin | -5/Warlord Commander-Assassin | -4/Proximity Caves Scavenger-Gunner | -4/Factory Scavenger-Mutant | -4/Upper Caves Scavenger-Skirmisher | -4/Upper Caves Scavenger-Assassin | -4/Zhirov Scavenger-Gunner | -3/Proximity Caves Scavenger-Skirmisher | -3/Research Wizard-Tank | -2/Research Hacker-Gunner | -2/Quarantine Wizard-Gunner | -2/Section 7 Resources | -11 -10 -10 -9 -6 -6 -6 -6 -5 -5 -5 -5 -5 -4 -4 -4 -4 -4 -3 -3 -2 -2 -2 ----------- Run | Yrd Mat Sub Scr Fac Low Low Dat Pro Fac Upp Upp War Pro Fac Upp Upp Zhi Pro Res Res Qua Sec Matter Collected 7785 | 277 48 172 78 203 60 400 . 84 216 179 114 . 240 316 194 73 . 312 899 994 1495 1431 Remotely 786 | . . 118 18 . . . . . . . . . . . . . . . 263 387 . . Salvage Created 11352 | 131 208 71 . 192 . 254 . . 611 151 . . 343 650 371 151 . 438 2447 1703 1710 1921 Parts 583 | 11 20 9 . 19 . 5 . . 31 4 . . 14 37 12 9 . 28 95 86 104 99 Haulers Intercepted 1 | . 1 . . . . . . . . . . . . . . . . . . . . . Recyclers Shooed 7 | . . . . . . . . . 1 . . . . 1 . . . . 4 1 . . Parts Field Recycled . | . . . . . . . . . . . . . . . . . . . . . . . Retrieved Matter . | . . . . . . . . . . . . . . . . . . . . . . . Parts Self-Destructed 118 | . . 11 . . . 13 . 1 . 9 5 . 50 . 7 9 . 13 . . . . Prevented 83 | . . . . . . 9 . 1 . 8 6 . 15 . 11 16 . 17 . . . . Kills | -11 -10 -10 -9 -6 -6 -6 -6 -5 -5 -5 -5 -5 -4 -4 -4 -4 -4 -3 -3 -2 -2 -2 ------- Run | Yrd Mat Sub Scr Fac Low Low Dat Pro Fac Upp Upp War Pro Fac Upp Upp Zhi Pro Res Res Qua Sec Combat Hostiles Destroyed 170 | . 7 5 . 3 . 5 . . 7 5 . . 7 9 5 2 . 7 31 16 31 30 Melee 1 | . . . . . . . . . . . . . . . . . . . . 1 . . Guns 85 | . 7 1 . 1 . 2 . . 3 2 . . 3 8 4 1 . 7 18 10 13 5 Cannons 59 | . . . . 2 . 3 . . 4 . . . 1 1 . 1 . . 9 2 17 19 AOE 19 | . . 4 . . . . . . . 3 . . 3 . 1 . . . 1 2 . 5 Classes Destroyed 22 | 2 4 2 . 2 . 1 . . 4 . . . 1 1 1 . . . 3 . 1 . Worker 11 | . . . . . . . . . 1 . . . . . . . . . 5 4 . 1 Builder 6 | . . . . . . . . . 1 . . . . . . . . . 3 2 . . Tunneler 4 | 3 . . . . . . . . . . . . . . . . . . . 1 . . Hauler 1 | . 1 . . . . . . . . . . . . . . . . . . . . . Recycler 9 | 1 . . . . . . . . 1 . . . . . . . . . 1 4 . 2 Mechanic 1 | . . . . . . . . . 1 . . . . . . . . . . . . . Operator 4 | . . . . 1 . . . . . . . . . . . . . . . . 2 1 Turret 1 | . . 1 . . . . . . . . . . . . . . . . . . . . Watcher 6 | . 1 . . 1 . . . . . . . . . . . . . . . 2 1 1 Swarmer 39 | . 5 3 . . . 1 . . . 2 . . 3 . . . . 3 6 4 8 4 Saboteur 2 | . . . . . . . . . . . . . . 1 . . . . . . . 1 Grunt 46 | . 2 . . 1 . 4 . . 3 3 . . 2 4 3 2 . 3 10 1 2 6 Brawler 1 | . . . . . . . . . . . . . . . . . . . 1 . . . Duelist 5 | . . . . . . . . . . . . . 1 . 1 . . 1 1 . . 1 Protector 1 | . . . . . . . . . . . . . . . . . . . . . 1 . Sentry 14 | . . . . . . . . . . . . . . . 1 . . . 3 4 . 6 Specialist 1 | . . . . . . . . . . . . . . . . . . . 1 . . . Hunter 10 | . . . . . . . . . 2 . . . . 1 . . . . 4 1 2 . Programmer 44 | . . . . 2 . . . . 2 . . . 1 3 . . . . 4 6 15 11 Heavy 1 | . . . . . . . . . . . . . . . . . . . 1 . . . S7 Guard 1 | . . . . . . . . . . . . . . . . . . . . . . 1 Lightning 3 | . . . . . . . . . . . . . . . . . . . . . 3 . Subdweller 2 | . . 2 . . . . . . . . . . . . . . . . . . . . Samaritan 1 | . . . . . . 1 . . . . . . . . . . . . . . . . Wizard 3 | . . . . . . . . . . . . . 1 1 . . . 1 . . . . Best Kill Streak 11 | 3 3 3 . 1 . 3 . . 4 2 . . 4 4 3 1 . 3 9 4 6 11 Combat Bots Only 8 | . 3 3 . 1 . 3 . . 2 2 . . 4 4 3 1 . 3 7 4 6 8 Max Kills in Single Turn 3 | 1 2 1 . 1 . 1 . . 2 2 . . 2 1 1 1 . 1 2 2 1 3 Gunslinging 1 | . 1 . . . . . . . . . . . . . . . . . 1 . . . Exploded 3 | . . 1 . . . . . . . 2 . . 2 . 1 . . . 1 1 . 3 Melee 1 | . . . . . . . . . . . . . . . . . . . . 1 . . Uniques/NPCs Destroyed . | . . . . . . . . . . . . . . . . . . . . . . . Combat | -11 -10 -10 -9 -6 -6 -6 -6 -5 -5 -5 -5 -5 -4 -4 -4 -4 -4 -3 -3 -2 -2 -2 -------- Run | Yrd Mat Sub Scr Fac Low Low Dat Pro Fac Upp Upp War Pro Fac Upp Upp Zhi Pro Res Res Qua Sec Hostile Shots Fired 1144 | . 26 38 . 10 . 17 . . 15 9 2 . 26 57 66 6 . 33 219 141 235 244 Missed 316 | . 8 16 . 1 . 4 . . 4 2 2 . 10 21 9 1 . 12 53 40 65 68 Hits 828 | . 18 22 . 9 . 13 . . 11 7 . . 16 36 57 5 . 21 166 101 170 176 Melee 9 | . . . . . . . . . . . . . . . . . . . . . . 9 Projectile 819 | . 18 22 . 9 . 13 . . 11 7 . . 16 36 57 5 . 21 166 101 170 167 AOE 1 | . . . . . . . . . . . . . . 1 . . . . . . . . Critical Strikes 57 | . . 1 . 1 . 1 . . 1 . . . 1 5 4 1 . . 10 2 17 13 Part Disruptions 5 | . . . . . . . . . . . . . . . . . . . 1 2 1 1 Damage Taken 19625 | . 257 456 . 157 . 244 . 21 281 139 . . 226 962 1110 202 . 472 3432 2606 4287 4773 Core 2362 | . 65 92 . . . 22 . 6 78 . . . . 224 . . . 66 269 180 280 1080 Absorbed by Shields 170 | . . . . . . . . . . . . . 115 55 . . . . . . . . Reduced by Siege Mode 732 | . . . . . . . . . . . . . . . . . . . 156 35 338 203 Redirected to Shielding 101 | . . . . . . . . . . . . . . . . . . . . . 101 . Ignored by Resistances 69 | . . . . . . . . . . . . . . . . . . . . . 23 46 Core Remaining (%) 79 | 100 . . 37 . . . . 96 . . . . 92 . . . . 74 79 . . . Volleys Fired 502 | 7 23 19 . 22 3 14 . 1 13 10 7 . 14 18 13 5 . 17 79 59 102 76 Largest 5 | 2 2 2 . 4 1 4 . 4 3 4 2 . 4 4 4 4 . 4 5 5 5 5 Hottest 446 | 70 100 115 . 173 65 186 . 186 145 188 80 . 405 221 446 249 . 234 377 327 358 335 Shots Fired 1377 | 14 41 30 . 45 3 37 . 6 39 22 10 . 33 63 24 14 . 59 254 190 283 210 Gun 919 | 14 36 22 . 15 1 15 . 4 26 9 7 . 22 53 21 12 . 45 197 157 168 95 Cannon 420 | . . . . 29 2 19 . 2 13 6 3 . 8 10 1 2 . 14 57 33 108 113 Launcher 29 | . 4 8 . . . 3 . . . 7 . . 3 . 2 . . . . . . 2 Special 9 | . 1 . . 1 . . . . . . . . . . . . . . . . 7 . Kinetic 712 | 7 18 . . 29 2 20 . 4 26 10 10 . 25 38 16 8 . 32 101 113 116 137 Thermal 525 | 7 19 19 . 15 1 14 . 2 13 5 . . 7 17 7 6 . 13 146 34 151 49 Explosive 22 | . 4 8 . . . . . . . 7 . . 1 . . . . . . . . 2 Electromagnetic 114 | . . 3 . . . 3 . . . . . . . 8 1 . . 14 7 43 13 22 Robot Hit Streak 34 | 5 11 6 . 7 . 12 . 1 9 7 4 . 8 12 9 6 . 8 26 34 17 20 Robot Miss Streak 6 | 1 2 3 . 2 . 2 . 4 2 1 2 . 1 6 1 1 . 4 3 3 6 4 Penetration Max 2 | . . . . . . . . . 1 1 . . . 1 . . . . 2 1 1 1 Secondary Targets 5 | . 1 . . . . . . . . . . . . 2 . . . . 1 1 . . Max Gunslinging Chain 1 | . 1 . . . . . . . . . . . . 1 . . . . 1 1 . . Shots Hit Robots 867 | 9 27 19 . 14 . 23 . 1 27 12 5 . 17 46 16 9 . 34 191 131 155 131 Core Hits 461 | 7 16 15 . 7 . 11 . . 16 16 . . 12 24 14 5 . 13 103 55 71 76 Critical Kills 17 | . . . . . . . . . . . . . . 5 . . . . 7 2 1 2 Critical Parts Destroyed 20 | . . . . . . . . . 3 . 1 . . 3 . . . 1 5 6 . 1 Critical Strikes 67 | 1 2 . . . . . . . 4 . 1 . 2 9 . 1 . 2 19 12 5 9 Burn 15 | 1 2 . . . . . . . . . . . 1 1 . 1 . 1 7 1 . . Meltdown 2 | . . . . . . . . . . . . . . . . . . . . . 1 1 Destroy 37 | . . . . . . . . . 3 . 1 . . 8 . . . 1 12 9 . 3 Blast 12 | . . . . . . . . . 1 . . . 1 . . . . . . 2 4 4 Corrupt 1 | . . . . . . . . . . . . . . . . . . . . . . 1 Melee Attacks 47 | . . . . 8 . . . . 4 4 . . 2 . . 1 . . 2 20 6 . Impact . | . . . . . . . . . . . . . . . . . . . . . . . Slashing 47 | . . . . 8 . . . . 4 4 . . 2 . . 1 . . 2 20 6 . Piercing . | . . . . . . . . . . . . . . . . . . . . . . . Sneak Attacks 8 | . . . . 1 . . . . 2 . . . . . . . . . . 5 . . Combat Hostiles . | . . . . . . . . . . . . . . . . . . . . . . . Follow-up Attacks . | . . . . . . . . . . . . . . . . . . . . . . . Damage Inflicted 29573 | 87 424 561 . 383 . 740 . 26 1133 1009 122 . 1011 1097 547 227 . 685 5409 4433 5879 5800 Guns 15964 | 87 330 229 . 111 . 262 . 26 624 222 88 . 396 894 281 192 . 494 3839 2674 3304 1911 Cannons 9226 | . . . . 151 . 348 . . 335 97 34 . 207 166 30 35 . 149 1295 1029 2537 2813 Explosions 3380 | . 90 332 . . . 121 . . . 690 . . 408 . 219 . . 42 222 185 . 1071 Melee 801 | . . . . 121 . . . . 174 . . . . . . . . . . 506 . . Ramming 164 | . 4 . . . . 9 . . . . . . . 37 17 . . . 53 39 . 5 Kinetic 12761 | 50 106 . . 151 . 368 . . 701 209 122 . 495 566 197 116 . 345 1835 2328 2122 3050 Thermal 12075 | 37 314 209 . 111 . 242 . 26 258 110 . . 402 380 303 111 . 191 3471 992 3571 1347 Explosive 2207 | . . 332 . . . . . . . 690 . . 114 . . . . . . . . 1071 Electromagnetic 1565 | . . 20 . . . 121 . . . . . . . 114 30 . . 149 50 568 186 327 Impact . | . . . . . . . . . . . . . . . . . . . . . . . Slashing 801 | . . . . 121 . . . . 174 . . . . . . . . . . 506 . . Piercing . | . . . . . . . . . . . . . . . . . . . . . . . Highest Corruption 59 | . . . . . . 6 6 7 2 2 15 15 8 1 1 1 1 28 12 12 43 59 Average Corruption 15 | . . . . . . 6 6 6 2 2 4 15 1 1 1 1 1 10 5 7 28 47 Corruption Purged 4 | . . . . . . . . . . . . . . . . . . . . . 4 . Corruption Blocked . | . . . . . . . . . . . . . . . . . . . . . . . Effects 369 | . . . . . . . 4 9 3 5 6 2 5 3 4 6 1 22 34 32 112 121 Message Errors 81 | . . . . . . . 2 4 2 1 2 . 1 1 . 1 . 7 9 10 24 17 Matter Fused 74 | . . . . . . . . 2 . 2 1 1 2 1 2 1 . 6 8 10 21 17 Heat Flow Errors 27 | . . . . . . . 1 . . 1 . . . . . 1 . 4 . . 9 11 Energy Discharges 39 | . . . . . . . . 1 1 . . 1 . . . 1 . . 4 2 16 13 Parts Rejected 6 | . . . . . . . . . . . . . . . . . . . 1 1 2 2 Parts Fused 4 | . . . . . . . . . . . . . . . 1 1 . . . . 2 . Data Loss (minor) 31 | . . . . . . . 1 . . . . . 1 1 1 . 1 3 6 2 9 6 Data Loss (major) 16 | . . . . . . . . . . . . . . . . 1 . . 1 . 5 9 Misfires 22 | . . . . . . . . 2 . 1 2 . . . . . . 1 1 3 5 7 Alerts 11 | . . . . . . . . . . . 1 . 1 . . . . 1 1 3 2 2 Misdirections 18 | . . . . . . . . . . . . . . . . . . . . . 1 17 Weapon Failures 40 | . . . . . . . . . . . . . . . . . . . 3 1 16 20 Overload Shots 1 | . . . . 1 . . . . . . . . . . . . . . . . . . Overflow Damage 644 | . . . . . . 3 . . 71 3 . . . . . . . . 18 278 141 130 Projectiles 374 | . . . . . . . . . 15 . . . . . . . . . 18 142 141 58 Explosions 75 | . . . . . . . . . . 3 . . . . . . . . . . . 72 Melee 195 | . . . . . . 3 . . 56 . . . . . . . . . . 136 . . Knockbacks 46 | . . . . 2 . 3 . . 2 1 1 . 3 . . . . . 1 9 15 9 Impact 1 | . . . . . . . . . . . . . . . . . . . 1 . . . Kinetic 43 | . . . . 2 . 3 . . 2 1 1 . 3 . . . . . . 8 14 9 Secondary 2 | . . . . . . . . . . . . . . . . . . . . 1 1 . Self-Inflicted Damage 274 | . 78 73 . . . . . . . 9 . . . . . . . . . 12 . 102 Shots 8 | . 1 3 . . . . . . . 1 . . . . . . . . . 1 . 2 Rammed 23 | . 2 . . . . 3 . . . . . . . 2 3 . . . 8 4 . 1 Targets Rammed 26 | . 2 . . . . 3 . . . . . . . 2 3 . . . 9 6 . 1 Kicked . | . . . . . . . . . . . . . . . . . . . . . . . Crushed 3 | . . . . . . . . . . . . . . . . . . . 1 2 . . Highest Temperature 537 | 60 184 . . 174 14 247 128 108 183 188 32 . 533 537 476 185 . 302 333 196 423 390 Average Temperature 102 | 23 65 . . 52 10 93 76 48 49 82 24 . 201 173 180 68 . 88 105 77 88 118 Received Heat Transfer 1997 | . 45 60 . 12 . 81 . 12 36 27 . . 24 203 311 42 . 60 445 117 36 486 Effects 17 | . . . . . . . . . . . . . 4 4 2 . . . 3 . 4 . Shutdowns 4 | . . . . . . . . . . . . . 1 1 1 . . . . . 1 . Energy Bleed 3 | . . . . . . . . . . . . . . . . . . . . . 3 . Interference 3 | . . . . . . . . . . . . . . . . . . . 3 . . . Matter Decay 1 | . . . . . . . . . . . . . . 1 . . . . . . . . Short Circuit 1 | . . . . . . . . . . . . . . . 1 . . . . . . . Damage (minor) 1 | . . . . . . . . . . . . . . 1 . . . . . . . . Damage (major) 3 | . . . . . . . . . . . . . 3 . . . . . . . . . Damage (core) 1 | . . . . . . . . . . . . . . 1 . . . . . . . . Siege Activations 6 | . . . . . . . . . . . . . . . . . . . 2 2 1 1 Total Turns 226 | . . . . . . . . . . . . . . . . . . . 63 42 92 29 Longest Duration 92 | . . . . . . . . . . . . . . . . . . . 50 35 92 29 Martial Activations . | . . . . . . . . . . . . . . . . . . . . . . . Shielding Activations . | . . . . . . . . . . . . . . . . . . . . . . . Robots Disrupted . | . . . . . . . . . . . . . . . . . . . . . . . Combat Hostiles . | . . . . . . . . . . . . . . . . . . . . . . . Robots Corrupted 2 | . . . . . . 1 . . . . . . . . . . . . . 1 . . Combat Hostiles 1 | . . . . . . . . . . . . . . . . . . . . 1 . . Parts Fried 6 | . . . . . . . . . 2 . . . . . 1 . . . . 1 1 1 Impact Corruptions 3 | . . . . . . 3 . . . . . . . . . . . . . . . . Robots Melted 5 | . . . . . . . . . . . . . . . . . . . 3 . 1 1 Combat Hostiles 5 | . . . . . . . . . . . . . . . . . . . 3 . 1 1 Parts Melted 38 | . . 1 . . . 1 . . . . . . 2 3 . . . . 19 1 9 2 Heat Transferred 17277 | 185 753 518 . 185 . 407 . 37 333 148 . . 485 555 494 350 . 550 6489 1316 3140 1332 Parts Sabotaged . | . . . . . . . . . . . . . . . . . . . . . . . Parts Stolen . | . . . . . . . . . . . . . . . . . . . . . . . Parts Stripped . | . . . . . . . . . . . . . . . . . . . . . . . Power Chain Reactions 4 | . . . . . . . . . . . . . . . . . . 1 1 2 . . Alert | -11 -10 -10 -9 -6 -6 -6 -6 -5 -5 -5 -5 -5 -4 -4 -4 -4 -4 -3 -3 -2 -2 -2 ------- Run | Yrd Mat Sub Scr Fac Low Low Dat Pro Fac Upp Upp War Pro Fac Upp Upp Zhi Pro Res Res Qua Sec Maximum Alert Level 3 | . . . . . . . . . 2 . . . . 3 . . . . 1 1 2 3 Low Security (%) 62 | 100 100 . . 100 . . . . 60 . . . . 28 . . . . 84 75 54 . Level 1 17 | . . . . . . . . . 23 . . . . 4 . . . . 15 25 36 17 Level 2 9 | . . . . . . . . . 15 . . . . 37 . . . . . . 8 24 Level 3 10 | . . . . . . . . . . . . . . 29 . . . . . . . 58 Level 4 . | . . . . . . . . . . . . . . . . . . . . . . . Level 5 . | . . . . . . . . . . . . . . . . . . . . . . . High Security . | . . . . . . . . . . . . . . . . . . . . . . . Max Security . | . . . . . . . . . . . . . . . . . . . . . . . Peak Influence 1031 | 10 97 . . 30 . . . . 605 . . . . 811 . . . . 376 304 522 1031 Initial 283 | . . . . . . . . . . . . . . 203 . . . . 38 201 164 283 Average 231 | 1 32 . . 4 . . . . 186 . . . . 517 . . . . 130 130 225 659 Influence Increases 9790 | 20 302 290 . 185 . 195 . 14 1085 381 170 . 848 1082 221 242 . 315 992 716 1224 1508 Destroy 0b10 Robot/C 4920 | . 140 80 . 60 . 120 . . 480 260 120 . 460 460 160 160 . 240 660 320 600 600 Destroy 0b10 Robot/NC 305 | 20 10 . . 10 . . . 10 75 . . . . 20 . . . . 50 65 20 25 Destroy Leader 886 | . 24 . . 32 . 20 . . 100 40 . . 50 92 20 20 . 30 130 94 102 132 Allied During Kill 1053 | . . . . . . 10 . 4 223 81 50 . 338 178 41 62 . 45 21 . . . Successful Hack 98 | . 15 . . 4 . . . . . . . . . . . . . . 20 . 19 40 Disable Machine 990 | . 60 . . 60 . . . . 75 . . . . 270 . . . . . 30 315 180 Destroy Structure 818 | . 38 . . 19 . . . . 132 . . . . 62 . . . . 66 72 153 276 Lose Combat Pursuer 720 | . 15 210 . . . 45 . . . . . . . . . . . . 45 135 15 255 Influence Decreases 8759 | 20 219 293 80 171 14 171 24 14 586 443 264 343 524 635 712 362 160 258 691 781 1013 981 Entered New Map 1910 | . . 41 80 . 6 . 24 . . 185 84 343 . 121 286 54 160 . 19 157 129 221 Time Decay 5189 | 20 219 212 . 171 8 171 . 14 296 198 160 . 384 334 386 278 . 208 422 524 634 550 Lost Part 720 | . . 40 . . . . . . . . . . 20 20 40 10 . 10 170 100 100 210 Lost Ally 640 | . . . . . . . . . 140 60 20 . 120 160 . 20 . 40 80 . . . Purge Threat 300 | . . . . . . . . . 150 . . . . . . . . . . . 150 . Squads Dispatched 55 | . 2 . . 5 . . . . 5 . . . 2 6 . . . . 12 6 6 11 Investigation 9 | . 1 . . 2 . . . . 1 . . . . 2 . . . . 1 1 . 1 Extermination 22 | . . . . 2 . . . . 1 . . . . 2 . . . . 2 4 6 5 Reinforcement 15 | . 1 . . 1 . . . . 3 . . . . 1 . . . . 6 1 . 2 Assault 6 | . . . . . . . . . . . . . 2 1 . . . . . . . 3 Garrison 3 | . . . . . . . . . . . . . . . . . . . 3 . . . Intercept . | . . . . . . . . . . . . . . . . . . . . . . . Searches Triggered . | . . . . . . . . . . . . . . . . . . . . . . . Data Miner Redirects 5 | . . . . . . . . . . . . . . 1 . . . . 1 1 . 2 Construction Impeded 8 | . . . . . . . . . 2 . . . . 1 . . . . 3 1 . 1 Haulers Reinforced 1 | . . . . . . . . . . . . . . . . . . . 1 . . . Active Scanning Responses . | . . . . . . . . . . . . . . . . . . . . . . . Cargo Convoy Interrupts . | . . . . . . . . . . . . . . . . . . . . . . . Stealth | -11 -10 -10 -9 -6 -6 -6 -6 -5 -5 -5 -5 -5 -4 -4 -4 -4 -4 -3 -3 -2 -2 -2 --------- Run | Yrd Mat Sub Scr Fac Low Low Dat Pro Fac Upp Upp War Pro Fac Upp Upp Zhi Pro Res Res Qua Sec Distress Signals 10 | . 1 . . . . . . . . . . . . . . . . . . 3 2 4 Communications Jammed . | . . . . . . . . . . . . . . . . . . . . . . . Distress Signals . | . . . . . . . . . . . . . . . . . . . . . . . Times Spotted 321 | . 15 16 . 5 . 8 . 2 17 10 2 . 20 21 9 8 . 12 39 27 41 69 Peak Tracking Total 11 | . 3 4 . 1 . 4 . 2 4 4 5 . 11 7 4 4 . 4 5 5 6 9 Tactical Retreats 31 | . 1 5 . . . 2 . . . . . . . . . . . . 2 9 1 11 Traps | -11 -10 -10 -9 -6 -6 -6 -6 -5 -5 -5 -5 -5 -4 -4 -4 -4 -4 -3 -3 -2 -2 -2 ------- Run | Yrd Mat Sub Scr Fac Low Low Dat Pro Fac Upp Upp War Pro Fac Upp Upp Zhi Pro Res Res Qua Sec Traps Triggered 9 | . . . . 1 . . . . . . . . . 2 . . . . 2 2 2 . Indirectly . | . . . . . . . . . . . . . . . . . . . . . . . Trap Hack Attempts . | . . . . . . . . . . . . . . . . . . . . . . . Triggered . | . . . . . . . . . . . . . . . . . . . . . . . Disarmed . | . . . . . . . . . . . . . . . . . . . . . . . Reprogrammed . | . . . . . . . . . . . . . . . . . . . . . . . Reused . | . . . . . . . . . . . . . . . . . . . . . . . Traps Extracted . | . . . . . . . . . . . . . . . . . . . . . . . Installed . | . . . . . . . . . . . . . . . . . . . . . . . Triggered . | . . . . . . . . . . . . . . . . . . . . . . . Most Traps Carried 1 | . . . 1 1 . . . . . . . . . . . . . . . . . . Machines | -11 -10 -10 -9 -6 -6 -6 -6 -5 -5 -5 -5 -5 -4 -4 -4 -4 -4 -3 -3 -2 -2 -2 ---------- Run | Yrd Mat Sub Scr Fac Low Low Dat Pro Fac Upp Upp War Pro Fac Upp Upp Zhi Pro Res Res Qua Sec Machines Disabled 71 | . 4 2 . 4 . . . . 5 . 1 . . 18 1 . . . . 2 22 12 Max in Single Turn 2 | . 2 1 . 1 . . . . 1 . 1 . . . 1 . . . . 1 2 1 Garrison Access 3 | . . . . . . . . . . . . . . . . . . . 1 1 1 . Machines Repaired . | . . . . . . . . . . . . . . . . . . . . . . . Machines Dismantled 5 | . . . . . . . . . . . . . . . . . . . . . 4 1 Machines Sabotaged . | . . . . . . . . . . . . . . . . . . . . . . . Overloaded Fab Kills . | . . . . . . . . . . . . . . . . . . . . . . . Hacking | -11 -10 -10 -9 -6 -6 -6 -6 -5 -5 -5 -5 -5 -4 -4 -4 -4 -4 -3 -3 -2 -2 -2 --------- Run | Yrd Mat Sub Scr Fac Low Low Dat Pro Fac Upp Upp War Pro Fac Upp Upp Zhi Pro Res Res Qua Sec Machines Accessed 72 | . 5 . 9 10 . 1 4 . 2 1 . . . 2 . . 6 . 7 4 11 10 Terminals 36 | . 4 . . 7 . . . . . . . . . . . . . . 4 1 10 10 Fabricators 5 | . . . . 2 . . . . 1 . . . . . . . . . 1 1 . . Repair Stations . | . . . . . . . . . . . . . . . . . . . . . . . Recycling Units 7 | . 1 . . 1 . . . . 1 . . . . 2 . . . . 1 1 . . Scanalyzers . | . . . . . . . . . . . . . . . . . . . . . . . Garrison Access 3 | . . . . . . . . . . . . . . . . . . . 1 1 1 . Total Hacks 236 | . 14 . 65 15 . 1 32 . 5 1 . . . 3 . . 18 . 16 15 32 19 Successful 179 | . 7 . 65 3 . 1 32 . 1 1 . . . 3 . . 18 . 12 10 20 6 Failed 57 | . 7 . . 12 . . . . 4 . . . . . . . . . 4 5 12 13 Catastrophic 15 | . 1 . . 8 . . . . . . . . . . . . . . 2 . 2 2 Database Lockouts . | . . . . . . . . . . . . . . . . . . . . . . . Manual 55 | . 8 . . 7 . . . . 3 . . . . 2 . . . . 7 8 11 9 Terminals 91 | . 11 . . 10 . . . . . . . . . . . . . . 10 11 30 19 Fabricators 10 | . . . . 4 . . . . 2 . . . . . . . . . 2 2 . . Repair Stations . | . . . . . . . . . . . . . . . . . . . . . . . Recycling Units 14 | . 3 . . 1 . . . . 3 . . . . 3 . . . . 3 1 . . Scanalyzers . | . . . . . . . . . . . . . . . . . . . . . . . Garrison Access 4 | . . . . . . . . . . . . . . . . . . . 1 1 2 . Terminal Hacks 157 | . 3 . 65 . . 1 32 . . 1 . . . . . . 18 . 6 6 19 6 Record 79 | . . . 56 . . . 11 . . . . . . . . . 6 . . . 6 . Part Schematic 16 | . . . . . . . 11 . . . . . . . . . 4 . . 1 . . Robot Schematic 7 | . . . . . . . 7 . . . . . . . . . . . . . . . Robot Analysis 13 | . . . 8 . . . . . . . . . . . . . 4 . . . 1 . Prototype ID Bank 8 | . 1 . . . . . 3 . . . . . . . . . 4 . . . . . Open Door 6 | . . . . . . 1 . . . 1 . . . . . . . . . . 1 3 Level Access Points 2 | . . . . . . . . . . . . . . . . . . . . . 1 1 Branch Access Points 2 | . . . . . . . . . . . . . . . . . . . . 1 . 1 Machine Index 1 | . . . . . . . . . . . . . . . . . . . 1 . . . Terminal Index 4 | . 1 . . . . . . . . . . . . . . . . . 1 1 1 . Fabricator Index 1 | . . . . . . . . . . . . . . . . . . . . 1 . . Garrison Index 1 | . . . . . . . . . . . . . . . . . . . . . 1 . Alert Level 6 | . . . . . . . . . . . . . . . . . . . 2 . 4 . Unreport Threat 1 | . . . . . . . . . . . . . . . . . . . . . 1 . Maintenance Status 1 | . 1 . . . . . . . . . . . . . . . . . . . . . Extermination Status 1 | . . . . . . . . . . . . . . . . . . . . . 1 . Registered Components 3 | . . . . . . . . . . . . . . . . . . . 1 1 1 . Registered Prototypes 2 | . . . . . . . . . . . . . . . . . . . 1 . 1 . Zone Layout 2 | . . . . . . . . . . . . . . . . . . . . 1 . 1 Proto ID Catalog 1 | . . . 1 . . . . . . . . . . . . . . . . . . . Fabricator Hacks 4 | . . . . 1 . . . . . . . . . . . . . . 1 2 . . Network Status 2 | . . . . 1 . . . . . . . . . . . . . . 1 . . . Load Schematic 1 | . . . . . . . . . . . . . . . . . . . . 1 . . Build 1 | . . . . . . . . . . . . . . . . . . . . 1 . . Repair Station Hacks . | . . . . . . . . . . . . . . . . . . . . . . . Recycling Unit Hacks 5 | . 2 . . . . . . . . . . . . 1 . . . . 1 1 . . Report Inventory 4 | . 1 . . . . . . . . . . . . 1 . . . . 1 1 . . Retrieve Matter 1 | . 1 . . . . . . . . . . . . . . . . . . . . . Scanalyzer . | . . . . . . . . . . . . . . . . . . . . . . . Garrison Access Hacks 3 | . . . . . . . . . . . . . . . . . . . 1 1 1 . Seal Access 3 | . . . . . . . . . . . . . . . . . . . 1 1 1 . Unauthorized Hacks 10 | . 2 . . 2 . . . . 1 . . . . 2 . . . . 3 . . . Terminals 2 | . 1 . . . . . . . . . . . . . . . . . 1 . . . Botnet 2 | . 1 . . . . . . . . . . . . . . . . . 1 . . . Fabricators 1 | . . . . 1 . . . . . . . . . . . . . . . . . . Haulers 1 | . . . . 1 . . . . . . . . . . . . . . . . . . Repair Stations . | . . . . . . . . . . . . . . . . . . . . . . . Recycling Units 7 | . 1 . . 1 . . . . 1 . . . . 2 . . . . 2 . . . Recyclers 2 | . 1 . . . . . . . . . . . . . . . . . 1 . . . Fedlink 5 | . . . . 1 . . . . 1 . . . . 2 . . . . 1 . . . Scanalyzers . | . . . . . . . . . . . . . . . . . . . . . . . Garrison Access . | . . . . . . . . . . . . . . . . . . . . . . . Data Cores Recovered 4 | . . . . 1 . . . . . . . . . . . . . . . . 2 1 Used . | . . . . . . . . . . . . . . . . . . . . . . . Hacking Detections 34 | . 4 . . 9 . . . . 2 . . . . . . . . . 4 2 6 7 Full Trace Events 4 | . 1 . . 1 . . . . . . . . . . . . . . . 1 . 1 Feedback Events 1 | . . . . . . . . . . . . . . . . . . . . . . 1 Corruption 1 | . . . . . . . . . . . . . . . . . . . . . . 1 Feedback Blocked . | . . . . . . . . . . . . . . . . . . . . . . . Robot Schematics Acquired 7 | . . . . . . . 7 . . . . . . . . . . . . . . . Robots Built . | . . . . . . . . . . . . . . . . . . . . . . . Authchips . | . . . . . . . . . . . . . . . . . . . . . . . Time . | . . . . . . . . . . . . . . . . . . . . . . . Total Robot Build Rating . | . . . . . . . . . . . . . . . . . . . . . . . Part Schematics Acquired 16 | . . . . . . . 11 . . . . . . . . . 4 . . 1 . . Parts Built 1 | . . . . . . . . . . . . . . . . . . . . 1 . . Authchips . | . . . . . . . . . . . . . . . . . . . . . . . Time 25 | . . . . . . . . . . . . . . . . . . . . 25 . . Total Part Build Rating 1 | . . . . . . . . . . . . . . . . . . . . 1 . . Parts Repaired . | . . . . . . . . . . . . . . . . . . . . . . . Time . | . . . . . . . . . . . . . . . . . . . . . . . Parts Recycled . | . . . . . . . . . . . . . . . . . . . . . . . Recycled Matter . | . . . . . . . . . . . . . . . . . . . . . . . Retrieved Matter . | . . . . . . . . . . . . . . . . . . . . . . . Retrieved Components . | . . . . . . . . . . . . . . . . . . . . . . . Parts Scanalyzed . | . . . . . . . . . . . . . . . . . . . . . . . Part Schematics Acquired . | . . . . . . . . . . . . . . . . . . . . . . . Parts Damaged . | . . . . . . . . . . . . . . . . . . . . . . . Bothacking | -11 -10 -10 -9 -6 -6 -6 -6 -5 -5 -5 -5 -5 -4 -4 -4 -4 -4 -3 -3 -2 -2 -2 ------------ Run | Yrd Mat Sub Scr Fac Low Low Dat Pro Fac Upp Upp War Pro Fac Upp Upp Zhi Pro Res Res Qua Sec Used RIF Installer . | . . . . . . . . . . . . . . . . . . . . . . . Robots Hacked 1 | . . . . 1 . . . . . . . . . . . . . . . . . . Non-combat . | . . . . . . . . . . . . . . . . . . . . . . . Combat . | . . . . . . . . . . . . . . . . . . . . . . . Robot Hacks Applied . | . . . . . . . . . . . . . . . . . . . . . . . Manual 1 | . . . . 1 . . . . . . . . . . . . . . . . . . Relay Couplers Released 3 | . . . . . . . . . 3 . . . . . . . . . . . . . Programmers 3 | . . . . . . . . . 3 . . . . . . . . . . . . . Fabnet Peak Effective % . | . . . . . . . . . . . . . . . . . . . . . . . Robots Rewired 6 | . . . . . . . . . . . 1 5 . . . . . . . . . . Allies Hacked . | . . . . . . . . . . . . . . . . . . . . . . . Hacks Repelled 1 | . . . . . . . . . . . . . 1 . . . . . . . . . Allies | -11 -10 -10 -9 -6 -6 -6 -6 -5 -5 -5 -5 -5 -4 -4 -4 -4 -4 -3 -3 -2 -2 -2 -------- Run | Yrd Mat Sub Scr Fac Low Low Dat Pro Fac Upp Upp War Pro Fac Upp Upp Zhi Pro Res Res Qua Sec Total Allies 59 | . . . . . . 5 . . 9 5 2 5 6 11 4 4 . 4 4 . . . Largest Group 10 | . . . . . . 4 4 4 4 4 5 10 10 6 4 4 4 4 4 . . . Highest-Rated Group 589 | . . . . . . 324 324 324 324 324 336 582 589 435 324 308 297 324 318 . . . Highest-Rated Ally 81 | . . . . . . 81 81 81 81 81 81 81 81 81 81 81 81 81 81 . . . Total Orders . | . . . . . . . . . . . . . . . . . . . . . . . Ally Attacks 367 | . . . . . . 13 . 3 74 27 21 . 69 80 20 22 . 31 7 . . . Total Damage 17135 | . . . . . . 320 . 155 3835 1039 871 . 3442 3781 578 1244 . 1291 579 . . . Kills 112 | . . . . . . 1 . 2 31 9 6 . 19 24 4 7 . 6 3 . . . Allies Corrupted . | . . . . . . . . . . . . . . . . . . . . . . . Allies Melted . | . . . . . . . . . . . . . . . . . . . . . . . Intel | -11 -10 -10 -9 -6 -6 -6 -6 -5 -5 -5 -5 -5 -4 -4 -4 -4 -4 -3 -3 -2 -2 -2 ------- Run | Yrd Mat Sub Scr Fac Low Low Dat Pro Fac Upp Upp War Pro Fac Upp Upp Zhi Pro Res Res Qua Sec Active Infowar (turns) 16623 | 68 786 . 1342 1325 269 635 156 266 720 413 331 414 978 453 778 607 298 520 1364 1394 2219 1287 Sensors 10074 | . . . . 1324 269 635 156 266 720 413 331 414 940 453 6 592 298 96 474 241 1180 1266 Terrain 7464 | . . . . . . . . . 679 413 331 414 978 294 772 607 298 520 1268 890 . . Structural 2381 | . . . . . . . . . . . . . . . . . . . . . 2103 278 Seismic 6470 | 68 786 . 1342 1191 . . . . . . . . . . . . . . 265 1153 1439 226 Robot Analysis Total 13 | . . . 8 . . . . . . . . . . . . . 4 . . . 1 . Derelict Logs Recovered 8 | . . . 2 . . 1 . 1 . . . . 2 . 1 1 . . . . . . Drone Launches . | . . . . . . . . . . . . . . . . . . . . . . . Drone Recoveries . | . . . . . . . . . . . . . . . . . . . . . . . Exploration | -11 -10 -10 -9 -6 -6 -6 -6 -5 -5 -5 -5 -5 -4 -4 -4 -4 -4 -3 -3 -2 -2 -2 ------------- Run | Yrd Mat Sub Scr Fac Low Low Dat Pro Fac Upp Upp War Pro Fac Upp Upp Zhi Pro Res Res Qua Sec Turns Passed 20793 | 165 1051 696 3407 1325 269 677 156 266 720 413 331 414 978 743 914 607 298 520 1490 1536 2221 1596 Spaces Moved 10590 | 82 570 321 2003 619 160 354 92 160 391 221 185 227 555 395 521 354 176 274 573 595 910 852 Core 426 | 21 . . 97 . . . . . . . . . . . . . . . . . . 308 Treads 10154 | 61 570 321 1906 619 160 354 92 160 391 221 185 227 555 395 521 354 176 274 573 595 910 534 Legs . | . . . . . . . . . . . . . . . . . . . . . . . Wheels . | . . . . . . . . . . . . . . . . . . . . . . . Hover . | . . . . . . . . . . . . . . . . . . . . . . . Flight . | . . . . . . . . . . . . . . . . . . . . . . . Fastest Speed 50 | 50 160 160 50 162 162 162 162 162 160 160 160 160 160 160 162 162 162 162 160 160 160 50 Average Speed 163 | 150 160 196 167 162 162 162 162 162 161 160 160 160 160 161 164 162 162 162 166 183 166 131 Slowest Speed 250 | 250 160 240 240 163 162 162 162 162 162 160 160 160 160 162 245 162 162 162 245 240 170 250 Overloaded Moves . | . . . . . . . . . . . . . . . . . . . . . . . Propulsion Burnouts . | . . . . . . . . . . . . . . . . . . . . . . . Robots Hopped . | . . . . . . . . . . . . . . . . . . . . . . . Potential Cave-ins 2 | . 2 . . . . . . . . . . . . . . . . . . . . . Cave-ins Triggered . | . . . . . . . . . . . . . . . . . . . . . . . Teleports 4 | . . . . . . . . . . . . . . . . . . . . . 2 2 Spacefolds 5 | . . . . . . . . . . . . . . . . . . . . . . 5 Exploration Rate (%) 43 | 6 67 22 90 18 31 54 74 33 13 44 40 38 70 13 77 53 62 45 17 13 76 48 Regions Visited 22 Branch Regions 16 Pre-discovered Areas 11 | . . . 4 . . . 1 1 1 . . . . . . 1 3 . . . . . Known Exits Taken 19 | . 1 . . 1 1 1 1 1 1 1 1 1 1 1 1 1 1 1 1 1 1 . Unknown Exits Taken 3 | 1 . 1 1 . . . . . . . . . . . . . . . . . . . Scrap Searched 24 | . . . 10 . 1 3 . 2 . 1 1 . . . 4 1 . 1 . . . . Spaces Dug 79 | . . . . 15 2 . . . 2 6 . . 2 . . 2 . . 3 13 10 24 Terrain Destroyed 520 | . 55 36 . 20 2 7 . 2 7 103 1 . 30 4 7 4 . 13 21 26 61 121 Melee 30 | . . . . 3 . . . . 2 4 . . 2 . . 1 . . 2 12 4 . Projectile 187 | . . . . 17 2 7 . 2 5 5 . . 8 4 3 3 . 9 12 10 57 43 AOE 301 | . 55 36 . . . . . . . 94 . . 20 . 4 . . 4 6 4 . 78 Terrain Rammed . | . . . . . . . . . . . . . . . . . . . . . . . Walls Destroyed . | . . . . . . . . . . . . . . . . . . . . . . . Machines Disabled . | . . . . . . . . . . . . . . . . . . . . . . . Actions | -11 -10 -10 -9 -6 -6 -6 -6 -5 -5 -5 -5 -5 -4 -4 -4 -4 -4 -3 -3 -2 -2 -2 --------- Run | Yrd Mat Sub Scr Fac Low Low Dat Pro Fac Upp Upp War Pro Fac Upp Upp Zhi Pro Res Res Qua Sec Total 12966 | 108 670 361 2069 889 167 428 99 165 447 256 213 278 617 457 555 377 188 309 911 875 1357 1170 Wait 1085 | 8 50 4 2 193 5 35 . . 21 12 16 9 28 23 2 8 . 5 187 125 178 174 Move 10563 | 81 569 320 2002 618 159 353 91 159 390 220 184 226 554 394 520 353 175 273 572 594 909 847 Hop . | . . . . . . . . . . . . . . . . . . . . . . . Pick Up 148 | 5 14 6 31 14 . 5 . 1 6 2 . . 6 3 3 3 1 2 7 12 21 6 Fast Attach 117 | 7 1 . 4 7 . 2 4 . 1 . . . . 4 3 1 3 1 21 20 24 14 Attach 76 | . . 6 2 6 . . . . 2 . . . 2 6 4 2 . 2 9 9 13 13 Detach 43 | . . 2 1 1 . 1 . . . . . . . 3 2 1 2 1 4 10 9 6 Swap 112 | . 5 . 3 9 . 8 . 2 3 6 1 . 6 3 2 1 4 6 13 9 23 8 Drop 150 | . 6 4 24 11 . 7 4 2 7 2 1 . 4 1 2 2 3 2 8 11 30 19 Fire 502 | 7 23 19 . 22 3 14 . 1 13 10 7 . 14 18 13 5 . 17 79 59 102 76 Melee 47 | . . . . 8 . . . . 4 4 . . 2 . . 1 . . 2 20 6 . Ram . | . . . . . . . . . . . . . . . . . . . . . . . Kick . | . . . . . . . . . . . . . . . . . . . . . . . Crush 26 | . 2 . . . . 3 . . . . . . . 2 3 . . . 9 6 . 1 Escape Stasis . | . . . . . . . . . . . . . . . . . . . . . . . Rewire 48 | . . . . . . . . . . . 4 43 . . 1 . . . . . . . Trap . | . . . . . . . . . . . . . . . . . . . . . . . Miscellaneous 49 | . . . . . . . . . . . . . 1 . . . . . . . 42 6 Route ------- -11/Scrapyard -10/Materials (discovered 3 exits: [*Mat] / [*Min] / *Sub) -10/Subcaves (discovered 2 exits: [*Rec] / *Scr) -9/Scraptown (discovered 2 exits: *Fac x2) -6/Factory (discovered 6 exits: Fac x4 / *Low x2) -6/Lower Caves -6/Lower Caves -6/Data Miner -5/Proximity Caves -5/Factory (discovered 2 exits: *Upp x2) -5/Upper Caves -5/Upper Caves (discovered 2 exits: Fac / *War) -5/Warlord -4/Proximity Caves -4/Factory (discovered 4 exits: *Res x2 / *Upp / *Ext) -4/Upper Caves -4/Upper Caves (discovered 2 exits: *Res / *Zhi) -4/Zhirov -3/Proximity Caves -3/Research (discovered 3 exits: *Res / *Tes x2) -2/Research (discovered 4 exits: *Acc x2 / *Qua x2) -2/Quarantine (discovered 3 exits: *Acc / *Sec / *Frg) -2/Section 7 (discovered 1 exit: Acc) History --------- Turn | Location | Event 30 | -11/Scrapyard | Discovered new exit (range 16) 166 | -11/Scrapyard | Entered Materials 300 | -10/Materials | Build established: Mutant 461 | -10/Materials | Discovered new exit (range 9) 900 | -10/Materials | Discovered new exit (range 9) 966 | -10/Materials | Derelicts attacked the area 1132 | -10/Materials | Discovered new exit (range 6) 1216 | -10/Materials | Identified exit to Subcaves 1217 | -10/Materials | Entered Subcaves 1218 | -10/Subcaves | Approached by a straggling Scientist 1370 | -10/Subcaves | Visited triangular shrine 1381 | -10/Subcaves | Found Prototype Device 1543 | -10/Subcaves | Discovered new exit (range 12) 1802 | -10/Subcaves | Core integrity fell below 50% 1817 | -10/Subcaves | Lost 3 parts (1u2w) 1896 | -10/Subcaves | Scientist uncovered a shortcut to Scraptown 1913 | -10/Subcaves | Entered Scraptown 2062 | -9/Scraptown | Heard Great Nut preacher, LISTEN AND RECITE! 2120 | -9/Scraptown | Scanned Subdweller tech in exchange for log data 2129 | -9/Scraptown | Learned Research security intel 2226 | -9/Scraptown | Identified V3-11A's Pendant 2232 | -9/Scraptown | Visited Red Mages 2328 | -9/Scraptown | Delivered V3-11A's Pendant to T0-NE2 in exchange for information 3002 | -9/Scraptown | Discovered new exit (range 11) 3098 | -9/Scraptown | Visited Cave Peace 3162 | -9/Scraptown | Visited Cyclists 3202 | -9/Scraptown | Visited UFD Registry 3202 | -9/Scraptown | Registered with UFD as "Smoothrunner" 3269 | -9/Scraptown | Visited Symbiants 3282 | -9/Scraptown | Visited Bundlers 3527 | -9/Scraptown | Visited Shadow of the Wyrm 3540 | -9/Scraptown | Visited Fellowship of the Rings 3711 | -9/Scraptown | Entered Cyclist Reading Room 3796 | -9/Scraptown | Visited Supply Room 3897 | -9/Scraptown | Visited Science Guys 3963 | -9/Scraptown | Visited Junk Repository 4225 | -9/Scraptown | Visited Derelict Rescue Squad 4236 | -9/Scraptown | Found DRS Beacon 4270 | -9/Scraptown | Visited Infowarlord's Domain 4298 | -9/Scraptown | Visited Abandonware Association 4316 | -9/Scraptown | Learned abandonware demo "TRNCOAT.EXE" 4346 | -9/Scraptown | Visited Chapter 10 4388 | -9/Scraptown | Visited Analyses Database 4428 | -9/Scraptown | Visited Supply Room 4468 | -9/Scraptown | Visited Cartography Club 4663 | -9/Scraptown | Learned location of Proximity Caves (-5) 4663 | -9/Scraptown | Learned location of Extension (-4) 4663 | -9/Scraptown | Learned 8 Materials zone layouts 4663 | -9/Scraptown | Learned 8 Factory zone layouts 4663 | -9/Scraptown | Learned 24 Factory zone layouts 4663 | -9/Scraptown | Learned 12 Research zone layouts 4663 | -9/Scraptown | Learned 4 Access zone layouts 4663 | -9/Scraptown | Learned 4 Mines zone layouts 4663 | -9/Scraptown | Learned 8 Lower Caves zone layouts 4663 | -9/Scraptown | Learned 12 Lower Caves zone layouts 4663 | -9/Scraptown | Learned 24 Proximity Caves zone layouts 4663 | -9/Scraptown | Learned Factory emergency access door positions 4663 | -9/Scraptown | Learned location of 3 exits from Factory 4663 | -9/Scraptown | Learned location of 1 exit from Upper Caves 5064 | -9/Scraptown | Found Exp. Terrain Scanner 5223 | -9/Scraptown | Met Optimus 5223 | -9/Scraptown | Accepted into 0bPrime 5313 | -9/Scraptown | Discovered new exit (range 5) 5318 | -9/Scraptown | Civil war broke out across Scraptown 5320 | -9/Scraptown | Entered Factory 5320 | -6/Factory | Evolved 8 slots: Propulsion x2, Utility x4, Weapon x2 5321 | -6/Factory | Identified exit to Lower Caves 5322 | -6/Factory | Identified exit to Factory 5556 | -6/Factory | Loaded intel: 8 recycling unit locations 5626 | -6/Factory | Build established: Skirmisher 6645 | -6/Factory | Entered Lower Caves 6646 | -6/Lower Caves | Identified exit to Lower Caves 6914 | -6/Lower Caves | Entered another Lower Caves area 7002 | -6/Lower Caves | Prototype Device suddenly appears! 7010 | -6/Lower Caves | Found Prototype Device 7010 | -6/Lower Caves | Identified Amulet of Y3-NDR 7026 | -6/Lower Caves | Encountered a Warlord checkpoint 7275 | -6/Lower Caves | Learned Factory trap positions 7297 | -6/Lower Caves | Joined by bewildered Wizard 7297 | -6/Lower Caves | Joined by bewildered Wizard 7297 | -6/Lower Caves | Joined by bewildered Wizard 7408 | -6/Lower Caves | Joined by bewildered Wizard 7447 | -6/Lower Caves | Build established: Gunner 7531 | -6/Lower Caves | Spotted B-75 Beast 7543 | -6/Lower Caves | Allies destroyed B-75 Beast 7556 | -6/Lower Caves | Discovered new exit (range 8) 7581 | -6/Lower Caves | Identified exit to Data Miner 7591 | -6/Lower Caves | Entered Data Miner 7591 | -6/Data Miner | Accompanied by 4 allies 7591 | -6/Data Miner | Discovered new exit (range 6) 7592 | -6/Data Miner | Joined by bewildered Wizard 7598 | -6/Data Miner | Identified exit to Proximity Caves 7624 | -6/Data Miner | Met Data Miner 7670 | -6/Data Miner | Learned location of Section 7 (-2) 7670 | -6/Data Miner | Acquired the access code to Warlord's prototype stash 7697 | -6/Data Miner | Received God Mode back door access code from Data Miner 7747 | -6/Data Miner | Entered Proximity Caves 7747 | -5/Proximity Caves | Accompanied by 4 allies 8013 | -5/Proximity Caves | Entered Factory 8013 | -5/Factory | Accompanied by 4 allies 8013 | -5/Factory | Evolved 2 slots: Utility x2 8014 | -5/Factory | Identified exit to Upper Caves 8015 | -5/Factory | Loaded intel: 100 trap records 8283 | -5/Factory | Joined by bewildered Wizard 8285 | -5/Factory | Joined by bewildered Wizard 8286 | -5/Factory | Joined by bewildered Wizard 8290 | -5/Factory | Lost 4 allies 8373 | -5/Factory | Joined by bewildered Wizard 8428 | -5/Factory | Lost 3 allies 8456 | -5/Factory | Joined by bewildered Wizard 8457 | -5/Factory | Joined by bewildered Wizard 8467 | -5/Factory | Build established: Assassin 8480 | -5/Factory | Joined by bewildered Wizard 8482 | -5/Factory | Joined by bewildered Wizard 8610 | -5/Factory | Loaded intel: 8 recycling unit locations 8610 | -5/Factory | Learned location of Protoforge (-2) 8733 | -5/Factory | Entered Upper Caves 8733 | -5/Upper Caves | Accompanied by 3 allies 8734 | -5/Upper Caves | Identified exit to Upper Caves 8836 | -5/Upper Caves | Joined by bewildered Wizard 8836 | -5/Upper Caves | Joined by bewildered Wizard 8837 | -5/Upper Caves | Joined by bewildered Wizard 8982 | -5/Upper Caves | Joined by bewildered Wizard 8982 | -5/Upper Caves | Joined by bewildered Wizard 9146 | -5/Upper Caves | Entered another Upper Caves area 9146 | -5/Upper Caves | Accompanied by 4 allies 9147 | -5/Upper Caves | Identified exit to Factory 9181 | -5/Upper Caves | Build established: Derelict-Assassin 9244 | -5/Upper Caves | Attracted the attention of an 0b10 checkpoint 9416 | -5/Upper Caves | Joined by bewildered Wizard 9425 | -5/Upper Caves | System corruption reached 10% 9463 | -5/Upper Caves | Discovered new exit (range 7) 9471 | -5/Upper Caves | Identified exit to Warlord 9477 | -5/Upper Caves | Entered Warlord 9477 | -5/Warlord | Accompanied by 5 allies 9532 | -5/Warlord | System corruption cleaned by Quarantine Array 9594 | -5/Warlord | Received a Watcher feed algorithm from an ecstatic Tinkerer 9860 | -5/Warlord | Discovered new exit (range 14) 9876 | -5/Warlord | Identified exit to Proximity Caves 9891 | -5/Warlord | Entered Proximity Caves 9891 | -4/Proximity Caves | Accompanied by 10 allies 9892 | -4/Proximity Caves | Activated DRS Beacon 10117 | -4/Proximity Caves | Joined by bewildered Wizard 10118 | -4/Proximity Caves | Joined by bewildered Wizard 10292 | -4/Proximity Caves | Derelict sapper outpost attacked 10300 | -4/Proximity Caves | Build established: Commander-Assassin 10407 | -4/Proximity Caves | Learned Research terminal intel 10472 | -4/Proximity Caves | Encountered a Derelict sapper outpost 10635 | -4/Proximity Caves | Lost 3 allies 10770 | -4/Proximity Caves | Learned Research emergency access door positions 10774 | -4/Proximity Caves | Discovered exit to Factory (range 15) 10842 | -4/Proximity Caves | Joined by bewildered Wizard 10844 | -4/Proximity Caves | Joined by bewildered Wizard 10845 | -4/Proximity Caves | Joined by bewildered Wizard 10854 | -4/Proximity Caves | Lost 5 allies 10865 | -4/Proximity Caves | Joined by bewildered Wizard 10869 | -4/Proximity Caves | Entered Factory 10869 | -4/Factory | Accompanied by 6 allies 10869 | -4/Factory | Evolved 2 slots: Utility x2 10870 | -4/Factory | Identified exit to Research 11081 | -4/Factory | Build established: Scavenger-Gunner 11119 | -4/Factory | First assault squad dispatched 11131 | -4/Factory | Lost 3 allies 11169 | -4/Factory | Joined by bewildered Wizard 11169 | -4/Factory | Joined by bewildered Wizard 11171 | -4/Factory | Incoming assault squad redirected 11174 | -4/Factory | Joined by bewildered Wizard 11175 | -4/Factory | Joined by bewildered Wizard 11184 | -4/Factory | Lost 4 allies 11238 | -4/Factory | Loaded intel: 8 recycling unit locations 11331 | -4/Factory | Joined by bewildered Wizard 11331 | -4/Factory | Joined by bewildered Wizard 11341 | -4/Factory | Lost 3 allies 11349 | -4/Factory | Joined by bewildered Wizard 11376 | -4/Factory | Discovered new exit (range 16) 11398 | -4/Factory | Identified exit to Extension 11480 | -4/Factory | Joined by bewildered Wizard 11484 | -4/Factory | Joined by bewildered Wizard 11535 | -4/Factory | Lost 6 allies 11577 | -4/Factory | Discovered new exit (range 15) 11610 | -4/Factory | Identified exit to Upper Caves 11612 | -4/Factory | Discovered exit to Research (range 6) 11612 | -4/Factory | Entered Upper Caves 11654 | -4/Upper Caves | Joined by bewildered Wizard 11655 | -4/Upper Caves | Joined by bewildered Wizard 11661 | -4/Upper Caves | Lost 4 parts (1p2n1w) 11713 | -4/Upper Caves | Joined by bewildered Wizard 11714 | -4/Upper Caves | Joined by bewildered Wizard 11915 | -4/Upper Caves | Encountered a Warlord checkpoint 11965 | -4/Upper Caves | Build established: Scavenger-Mutant 12187 | -4/Upper Caves | Attacked by a delusional Derelict stockpiling parts 12429 | -4/Upper Caves | Attracted the attention of an 0b10 checkpoint 12505 | -4/Upper Caves | Discovered new exit (range 11) 12511 | -4/Upper Caves | Build established: Scavenger-Gunner 12519 | -4/Upper Caves | Identified exit to Upper Caves 12526 | -4/Upper Caves | Entered another Upper Caves area 12526 | -4/Upper Caves | Accompanied by 4 allies 12558 | -4/Upper Caves | Lost 3 allies 12611 | -4/Upper Caves | Joined by bewildered Wizard 12613 | -4/Upper Caves | Joined by bewildered Wizard 12613 | -4/Upper Caves | Joined by bewildered Wizard 12619 | -4/Upper Caves | Discovered exit to Research (range 15) 12792 | -4/Upper Caves | Attracted the attention of an 0b10 checkpoint 12832 | -4/Upper Caves | Build established: Scavenger-Skirmisher 12859 | -4/Upper Caves | Joined by bewildered Wizard 13071 | -4/Upper Caves | Learned location of Quarantine (-2) 13108 | -4/Upper Caves | Discovered new exit (range 16) 13131 | -4/Upper Caves | Identified exit to Zhirov 13133 | -4/Upper Caves | Entered Zhirov 13133 | -4/Zhirov | Accompanied by 4 allies 13135 | -4/Zhirov | Discovered new exit (range 3) 13137 | -4/Zhirov | Identified exit to Proximity Caves 13166 | -4/Zhirov | Met Zhirov 13201 | -4/Zhirov | Learned location of Testing (-3) 13201 | -4/Zhirov | Learned location of Command (-1) 13229 | -4/Zhirov | Zhirov requested help retrieving the SGEMP Prototype 13254 | -4/Zhirov | Found Alien Artifact 13254 | -4/Zhirov | Identified Integrated Dissipator 13254 | -4/Zhirov | Installed Integrated Dissipator, increased core heat dissipation (+20) 13280 | -4/Zhirov | Found Alien Artifact 13431 | -4/Zhirov | Entered Proximity Caves 13431 | -3/Proximity Caves | Accompanied by 4 allies 13433 | -3/Proximity Caves | Attracted the attention of an 0b10 checkpoint 13455 | -3/Proximity Caves | Build established: Scavenger-Assassin 13470 | -3/Proximity Caves | System corruption reached 10% 13676 | -3/Proximity Caves | Joined by bewildered Wizard 13677 | -3/Proximity Caves | Joined by bewildered Wizard 13710 | -3/Proximity Caves | Joined by bewildered Wizard 13711 | -3/Proximity Caves | Joined by bewildered Wizard 13837 | -3/Proximity Caves | Build established: Scavenger-Gunner 13924 | -3/Proximity Caves | Discovered exit to Research (range 13) 13951 | -3/Proximity Caves | Entered Research 13951 | -3/Research | Accompanied by 4 allies 13951 | -3/Research | Evolved 2 slots: Utility x1, Weapon x1 13952 | -3/Research | Identified exit to Testing 13953 | -3/Research | Identified exit to Research 13956 | -3/Research | Loaded intel: 21 terminal locations 14093 | -3/Research | Found Fusion Bomb Launcher 14239 | -3/Research | Build established: Scavenger-Skirmisher 14263 | -3/Research | Garrison activated, responded to threat 14471 | -3/Research | Lost 6 parts (2n1u3w) 14937 | -3/Research | Loaded intel: 5 recycling unit locations 14964 | -3/Research | Incoming investigation squad redirected 15124 | -3/Research | System corruption reached 10% 15262 | -3/Research | Joined by bewildered Wizard 15262 | -3/Research | Joined by bewildered Wizard 15268 | -3/Research | Joined by bewildered Wizard 15268 | -3/Research | Joined by bewildered Wizard 15326 | -3/Research | Lost 4 allies 15355 | -3/Research | Destroyed 7 combat bots 15441 | -3/Research | Entered another Research area 15441 | -2/Research | Evolved 2 slots: Utility x2 15442 | -2/Research | Identified exit to Access 15513 | -2/Research | Build established: Wizard-Tank 15701 | -2/Research | Identified exit to Quarantine 15953 | -2/Research | Found Prototype Launcher 15953 | -2/Research | Identified Adv. Micro-nuke Launcher 16230 | -2/Research | Incoming investigation squad redirected 16236 | -2/Research | Fabricated Huge Storage Unit (x1) 16387 | -2/Research | Lost 6 parts (1n2u3w) 16602 | -2/Research | System corruption reached 10% 16754 | -2/Research | Discovered exit to Access (range 10) 16977 | -2/Research | Entered Quarantine 17091 | -2/Quarantine | Found Prototype Device 17091 | -2/Quarantine | Identified Thermal Barrier 17284 | -2/Quarantine | Cryocooling Duct disabled 17299 | -2/Quarantine | Ambient heat levels rising (+20) 17299 | -2/Quarantine | Non-combat units ordered to evacuate 17313 | -2/Quarantine | Found Alien Artifact 17313 | -2/Quarantine | Identified Subatomic Replicator 17340 | -2/Quarantine | Build established: Wizard-Assassin 18226 | -2/Quarantine | Met incapacitated Sigix Warrior 18226 | -2/Quarantine | Lockdown squad dispatched 18281 | -2/Quarantine | Spotted Lightning 18284 | -2/Quarantine | Spotted Lightning 18287 | -2/Quarantine | Spotted Lightning 18292 | -2/Quarantine | System corruption reached 30% 18304 | -2/Quarantine | Destroyed Lightning 18330 | -2/Quarantine | Destroyed Lightning 18340 | -2/Quarantine | Destroyed Lightning 18378 | -2/Quarantine | Used Subatomic Replicator to replicate Sigix Containment Pod 18383 | -2/Quarantine | Found Sigix Containment Pod 18393 | -2/Quarantine | Found Prototype Device 18393 | -2/Quarantine | Identified Exp. Phase Shifter 18399 | -2/Quarantine | Found Prototype Processor 18399 | -2/Quarantine | Identified Exp. Targeting Computer 18410 | -2/Quarantine | Found Prototype Energy Cannon 18410 | -2/Quarantine | Identified EMDS 18496 | -2/Quarantine | Found Alien Energy Cannon 18496 | -2/Quarantine | Identified Core Cannon 18556 | -2/Quarantine | Found Alien Artifact 18693 | -2/Quarantine | Build established: Hacker-Gunner 18911 | -2/Quarantine | Found Alien Artifact 18920 | -2/Quarantine | Found Alien Artifact 18931 | -2/Quarantine | Found Alien Artifact 18931 | -2/Quarantine | Identified Transdimensional Reconstructor (x2) 18931 | -2/Quarantine | Warped through subspace 19071 | -2/Quarantine | Found Alien Artifact 19085 | -2/Quarantine | Identified Phase Redirector 19087 | -2/Quarantine | Identified Hpw. Transdimensional Reconstructor (x2) 19087 | -2/Quarantine | Warped through subspace 19180 | -2/Quarantine | Discovered new exit (range 5) 19180 | -2/Quarantine | Discovered new exit (range 6) 19185 | -2/Quarantine | Identified exit to Section 7 19191 | -2/Quarantine | Identified exit to Protoforge 19198 | -2/Quarantine | Entered Section 7 19378 | -2/Section 7 | Build established: Wizard-Gunner 19507 | -2/Section 7 | Destroyed 8 combat bots 19530 | -2/Section 7 | Found Alien Artifact 19531 | -2/Section 7 | Identified Spacefold Activator 19583 | -2/Section 7 | Lost 3 parts (1p1n1u) 19623 | -2/Section 7 | Core integrity fell below 50% 19680 | -2/Section 7 | Spotted S7 Guard 19698 | -2/Section 7 | First assault squad dispatched 19710 | -2/Section 7 | Destroyed S7 Guard 19719 | -2/Section 7 | Incoming assault squad redirected 19736 | -2/Section 7 | Lost 4 parts (1n2u1w) 19742 | -2/Section 7 | Found Alien Artifact 19742 | -2/Section 7 | Identified Core Regenerator 19742 | -2/Section 7 | Used Core Regenerator, restored core integrity (+362) 20233 | -2/Section 7 | Warped through subspace 20414 | -2/Section 7 | Warped through subspace 20426 | -2/Section 7 | Spotted Alpha 7 20426 | -2/Section 7 | Spotted B-99 Colossus 20431 | -2/Section 7 | Incoming assault squad redirected 20613 | -2/Section 7 | Lost 4 parts (2n1u1w) 20615 | -2/Section 7 | Found Transdimensional Reconstructor 20621 | -2/Section 7 | Found Alien Artifact 20621 | -2/Section 7 | Identified Terrabomb 20621 | -2/Section 7 | Used Terrabomb 20633 | -2/Section 7 | Found Alien Reactor 20633 | -2/Section 7 | Identified Matter Drive 20644 | -2/Section 7 | Spotted Executioner 20644 | -2/Section 7 | Spotted Executioner 20705 | -2/Section 7 | Core integrity fell below 20% 20722 | -2/Section 7 | Spotted S7 Guard 20725 | -2/Section 7 | Found Alien Artifact 20725 | -2/Section 7 | Identified Integrated Thermoelectric Network 20725 | -2/Section 7 | Installed Integrated Thermoelectric Network, gained heat-energy exchange potential 20781 | -2/Section 7 | Spotted B-90 Cyclops 20794 | -2/Section 7 | Destroyed by G-73 Enforcer with Phase Gun Last Messages --------------- 20723_ S7 Guard springs to life. 20724_ Spacefolded through Suspension Chamber. 20725_ Acquired Alien Artifact. 20725_ Identified Integrated Thermoelectric Network. 20725_ Integrated Thermoelectric Network installed, heat-energy exchanger active. 20729_ System corrupted: Substantial component data lost. 20746_ System corrupted: Matter fused (-10). 20758_ Spacefolded through Suspension Chamber. 20763_ System corrupted: Energy discharge (-30). 20765_ K-01 Serf cleans the Quantum Generator. 20770_ Adv. Hacking Suite destroyed. 20778_ System corrupted: Energy discharge (-20). 20782_ Core Analyzer destroyed. 20788_ Connecting with Terminal... >>Layout(Zone) Retrieving Zone 6X layout... Downloaded map data. 20791_ Connecting with Terminal... 20793_ Knocked back. Map ----- +----------------------------------------------------+ | ????????# ^ """"""" #?????????????????????? | | ????????# """"""" #?????????????????????? | | ????????# #?????????????????????? | | ????????+ #?????????????????????? | | ????????# ##########+##/##????????????????????? | | ????????# #????# #????????????????????? | | ????????# #????# """"""" #????????????????????? | | ????????# #????# """"""" #????????????????????? | | ######### #????# """"""" # ????????????????? | | """"""" # #????# # ????????????????? | | """"""" / #????# """ """ # ????????????????? | | """"""" # #????# """S""" # ????????????????? | | # #????# # ????????????????? | | = # #????#######+#####+#????????????????? | | ######?########## ###?# ????????????????? | | #?###### # g #?# ????????????????? | | #?# # # g ### ????????????????? | | ##+######?# # + H ????????????????? | | ?# #?####?# # # ###+#????????????????? | | ## ### #?# # # # ????????????????? | | # #" ### # ## ## ????????????????? | | + ######### ## ????????????????? | | # ##""#???# + ????????????????? | | ] != "######T"##### ## ????????????????? | | ] == ## ????????????????? | | ######@#######????????????????? | | # #????????????????? | | + % #????????????????? | | #"" ""####"##"###### "T" #????????????????? | | #""R""#??###???????# """ #????????????????? | | # """"#????????????# #????????????????? | | #######????????????##############????????????????? | | | | | | | | | | | | | | | | | | | | | | | | | | | | | | | | | | | | | +----------------------------------------------------+ Best States ------------- Heat Dissipation 88 Coolant Potential 100 Energy Generation 27 Energy Capacity 500 Matter Stores 300 Matter Capacity 300 Sight Range 16 Robot Scan Range 16 Terrain Scan Range 30 Terrain Scan Density 10 Power Amplification 40 Armor Coverage 600 Resistance: TH 50 Utility Shielding 90 Weapon Shielding 66 Phase Shifting 20 Evasion (%) 60 Targeting Accuracy 16 Target Analysis 8 Core Analysis 9 Recoil Reduction 4 Offensive Hacking 50 Defensive Hacking 34 Item Schematics ----------------- Combat Drone Bay | -6/Data Miner | Free Lgt. Regenerative Plating | -6/Data Miner | Free Enh. Armored Leg | -6/Data Miner | Free Imp. Matter Compressor | -6/Data Miner | Free Cld. Plasma Rifle | -6/Data Miner | Free Centrium Wheel | -6/Data Miner | Free Adv. Particle Charger | -6/Data Miner | Free Adv. Datajack | -6/Data Miner | Free Imp. Arc Projector | -6/Data Miner | Free Adv. Medium Treads | -6/Data Miner | Free Adv. Recalibrator | -6/Data Miner | Free Assault Drone Bay | -4/Zhirov | Free Exp. Heat Sink | -4/Zhirov | Free Exp. Optical Array | -4/Zhirov | Free Imp. Arc Thrower | -4/Zhirov | Free Huge Storage Unit | -2/Research | Hacked Robot Schematics ------------------ B-48 Gladiator | -6/Data Miner | Free H-66 Slayer | -6/Data Miner | Free A-15 Conveyor | -6/Data Miner | Free L-41 Fighter | -6/Data Miner | Free B-60 Warrior | -6/Data Miner | Free X-72 Disruptor | -6/Data Miner | Free I-47 Archangel | -6/Data Miner | Free Fabricated ------------ Huge Storage Unit | x1 | -2/Research Repaired ---------- Nothing Alien Tech Used ----------------- Integrated Dissipator Subatomic Replicator Core Cannon Transdimensional Reconstructor Phase Redirector High-powered Transdimensional Reconstructor Spacefold Activator Core Regenerator Terrabomb Matter Drive Integrated Thermoelectric Network Achievements -------------- Dramatic Entrance Generalissimo Use The Force Z1$+NX3F=JRE3_ZNQR Challenges ------------ None Game ------ Seed SpreadSlugObliterator Manual? 0 Play Time 04:46:53 Cumulative 125.8 hours Start 2025.08.07 @ 21:16:37 End 2025.08.08 @ 18:00:28 Sessions 5 Manual Loads 0 Difficulty Rogue Special Mode None Game No. 55 Rogue 55 Adventurer 0 Explorer 0 Win Type - Total 8 Types 8/0/0/0/0/0/0/0/0/0 Lore% 66 Gallery% 59 Achievement% 48 Wizard Run 0 Options --------- Layout 0 ASCII 0 Keyboard 1 Movement Numpad Keybinds 0 Fullscreen 1 Font 18/Cog Map View 76x50 Zoom Use 0% Tactical HUD 1 Map Filters NONE Filters NONE Steam 1 RUN: 8c600cdc-8c28-4ef6-add8-2f85181aa87c